[Event "Titled Tuesday Blitz April 4 Early 2023"]
[White "Jain Kashish Manoj"]
[Black "Becerra, Juan David"]
[WhiteFideId "35081098"]
[BlackFideId "4404998"]
[WhiteElo "2191"]
[BlackElo "2276"]
[Result "0-1"]
[Round "07"]
[TimeControl "180+2"]
[Date "2023.04.04"]
[WhiteClock "0:00:05"]
[BlackClock "0:01:03"]

1. Nf3 {[%clk 0:03:00]}  d5 {[%clk 0:02:57]} 2. e3 {[%clk 0:03:00]}  Nf6 {[%clk 0:02:57]} 3. b3 {[%clk 0:03:00]}  Bg4 {[%clk 0:02:57]} 4. Bb2 {[%clk 0:02:59]}  Nbd7 {[%clk 0:02:57]} 5. Be2 {[%clk 0:02:56]}  e6 {[%clk 0:02:57]} 6. O-O {[%clk 0:02:54]}  Be7 {[%clk 0:02:57]} 7. c4 {[%clk 0:02:53]}  O-O {[%clk 0:02:56]} 8. h3 {[%clk 0:02:46]}  Bh5 {[%clk 0:02:52]} 9. d4 {[%clk 0:02:27]}  c6 {[%clk 0:02:52]} 10. Nbd2 {[%clk 0:02:23]}  Rc8 {[%clk 0:02:51]} 11. Ne5 {[%clk 0:02:19]}  Bxe2 {[%clk 0:02:50]} 12. Qxe2 {[%clk 0:02:20]}  Nxe5 {[%clk 0:02:50]} 13. dxe5 {[%clk 0:02:21]}  Nd7 {[%clk 0:02:50]} 14. Rfd1 {[%clk 0:02:19]}  Qa5 {[%clk 0:02:50]} 15. e4 {[%clk 0:01:57]}  Bb4 {[%clk 0:02:42]} 16. exd5 {[%clk 0:01:47]}  cxd5 {[%clk 0:02:42]} 17. cxd5 {[%clk 0:01:46]}  Rc2 {[%clk 0:02:31]} 18. dxe6 {[%clk 0:01:40]}  fxe6 {[%clk 0:02:27]} 19. Qd3 {[%clk 0:01:31]}  Rxb2 {[%clk 0:02:17]} 20. Nc4 {[%clk 0:01:29]}  Qc5 {[%clk 0:02:13]} 21. Nxb2 {[%clk 0:01:27]}  Qxf2+ {[%clk 0:02:10]} 22. Kh1 {[%clk 0:01:27]}  Nxe5 {[%clk 0:02:11]} 23. Qe4 {[%clk 0:01:15]}  Bc3 {[%clk 0:01:27]} 24. Rf1 {[%clk 0:00:14]}  Qxb2 {[%clk 0:01:26]} 25. Rxf8+ {[%clk 0:00:14]}  Kxf8 {[%clk 0:01:27]} 26. Rf1+ {[%clk 0:00:13]}  Nf7 {[%clk 0:01:24]} 27. Qxe6 {[%clk 0:00:06]}  Bf6 {[%clk 0:01:25]} 28. Rd1 {[%clk 0:00:02]}  g6 {[%clk 0:01:20]} 29. Qc8+ {[%clk 0:00:01]}  Kg7 {[%clk 0:01:20]} 30. Qxb7 {[%clk 0:00:02]}  Be5 {[%clk 0:01:14]} 31. Rf1 {[%clk 0:00:02]}  Bf6 {[%clk 0:01:11]} 32. Qxa7 {[%clk 0:00:02]}  h5 {[%clk 0:01:09]} 33. Qf2 {[%clk 0:00:03]}  Nd6 {[%clk 0:01:06]} 34. Qxb2 {[%clk 0:00:02]}  Bxb2 {[%clk 0:01:05]} 35. Rb1 {[%clk 0:00:03]}  Ba3 {[%clk 0:01:04]} 36. b4 {[%clk 0:00:02]}  Nb5 {[%clk 0:01:05]} 37. Kg1 {[%clk 0:00:01]}  Kf6 {[%clk 0:01:04]} 38. Rb3 {[%clk 0:00:02]}  Ke5 {[%clk 0:01:04]} 39. Kf2 {[%clk 0:00:02]}  Ke4 {[%clk 0:01:03]} 40. Ke2 {[%clk 0:00:02]}  Nd4+ {[%clk 0:01:03]} 41. Kf2 {[%clk 0:00:01]}  Nxb3 {[%clk 0:01:03]} 42. axb3 {[%clk 0:00:01]}  Bxb4 {[%clk 0:01:04]} 43. Kg3 {[%clk 0:00:02]}  g5 {[%clk 0:01:03]} 44. h4 {[%clk 0:00:03]}  g4 {[%clk 0:01:04]} 45. Kf2 {[%clk 0:00:03]}  Kf4 {[%clk 0:01:03]} 46. g3+ {[%clk 0:00:04]}  Ke4 {[%clk 0:01:03]} 47. Ke2 {[%clk 0:00:04]}  Bc5 {[%clk 0:01:02]} 48. Kd2 {[%clk 0:00:05]}  Kf3 {[%clk 0:01:03]} 0-1


[Site "https://www.chess.com"]

[Event "Titled Tuesday Blitz April 4 Early 2023"]
[White "Fiorito, Francisco"]
[Black "Sargissyan, Sargis"]
[WhiteFideId "180165"]
[BlackFideId "13303210"]
[WhiteElo "2341"]
[BlackElo "2109"]
[Result "1-0"]
[Round "07"]
[TimeControl "180+2"]
[Date "2023.04.04"]
[WhiteClock "0:02:00"]
[BlackClock "0:00:24"]

1. d4 {[%clk 0:03:00]}  Nf6 {[%clk 0:02:59]} 2. Bf4 {[%clk 0:03:01]}  d5 {[%clk 0:02:58]} 3. e3 {[%clk 0:03:01]}  c5 {[%clk 0:02:58]} 4. dxc5 {[%clk 0:02:57]}  e6 {[%clk 0:02:54]} 5. b4 {[%clk 0:02:56]}  a5 {[%clk 0:02:46]} 6. c3 {[%clk 0:02:56]}  Nc6 {[%clk 0:02:33]} 7. Bb5 {[%clk 0:02:55]}  Bd7 {[%clk 0:02:30]} 8. Qb3 {[%clk 0:02:54]}  b6 {[%clk 0:02:06]} 9. Bxc6 {[%clk 0:02:53]}  Bxc6 {[%clk 0:02:06]} 10. b5 {[%clk 0:02:53]}  a4 {[%clk 0:02:01]} 11. Qb2 {[%clk 0:02:52]}  a3 {[%clk 0:01:50]} 12. Qb3 {[%clk 0:02:51]}  Bd7 {[%clk 0:01:47]} 13. c6 {[%clk 0:02:51]}  Bc8 {[%clk 0:01:46]} 14. Nd2 {[%clk 0:02:49]}  Bc5 {[%clk 0:01:40]} 15. Ngf3 {[%clk 0:02:49]}  O-O {[%clk 0:01:39]} 16. O-O {[%clk 0:02:49]}  Ne4 {[%clk 0:01:26]} 17. Nxe4 {[%clk 0:02:46]}  dxe4 {[%clk 0:01:26]} 18. Rad1 {[%clk 0:02:45]}  Qe7 {[%clk 0:01:26]} 19. Ne5 {[%clk 0:02:43]}  g5 {[%clk 0:01:14]} 20. Bg3 {[%clk 0:02:40]}  f5 {[%clk 0:01:03]} 21. Nd7 {[%clk 0:02:20]}  f4 {[%clk 0:00:59]} 22. Nxf8 {[%clk 0:02:19]}  Qxf8 {[%clk 0:00:50]} 23. exf4 {[%clk 0:02:19]}  gxf4 {[%clk 0:00:50]} 24. Bh4 {[%clk 0:02:20]}  Qh6 {[%clk 0:00:36]} 25. g3 {[%clk 0:02:13]}  Kf7 {[%clk 0:00:25]} 26. Qc4 {[%clk 0:02:06]}  Qg6 {[%clk 0:00:24]} 27. Rde1 {[%clk 0:02:00]} 1-0


[Site "https://www.chess.com"]

[Event "Titled Tuesday Blitz April 4 Early 2023"]
[White "Dobre, Claudiu-Cristian"]
[Black "Kukreja, Sankalp"]
[WhiteFideId "1211854"]
[BlackFideId "45027676"]
[WhiteElo "2207"]
[BlackElo "2126"]
[Result "0-1"]
[Round "07"]
[TimeControl "180+2"]
[Date "2023.04.04"]
[WhiteClock "0:00:01"]
[BlackClock "0:00:19"]

1. e4 {[%clk 0:03:00]}  c5 {[%clk 0:02:58]} 2. b3 {[%clk 0:03:01]}  Nf6 {[%clk 0:02:56]} 3. e5 {[%clk 0:03:00]}  Nd5 {[%clk 0:02:55]} 4. d4 {[%clk 0:03:00]}  cxd4 {[%clk 0:02:51]} 5. Qxd4 {[%clk 0:03:00]}  e6 {[%clk 0:02:52]} 6. Nf3 {[%clk 0:02:47]}  Nc6 {[%clk 0:02:50]} 7. Qe4 {[%clk 0:02:48]}  d6 {[%clk 0:02:42]} 8. Bb2 {[%clk 0:02:38]}  dxe5 {[%clk 0:02:38]} 9. Nxe5 {[%clk 0:02:36]}  Nxe5 {[%clk 0:02:37]} 10. Bxe5 {[%clk 0:02:34]}  Bd7 {[%clk 0:02:08]} 11. a3 {[%clk 0:01:16]}  Bc6 {[%clk 0:02:04]} 12. Qg4 {[%clk 0:01:16]}  Nf6 {[%clk 0:01:54]} 13. Qd4 {[%clk 0:01:02]}  Qxd4 {[%clk 0:01:46]} 14. Bxd4 {[%clk 0:01:02]}  Bd6 {[%clk 0:01:28]} 15. Nc3 {[%clk 0:00:51]}  O-O-O {[%clk 0:01:23]} 16. Bd3 {[%clk 0:00:36]}  e5 {[%clk 0:01:00]} 17. Bf5+ {[%clk 0:00:25]}  Kb8 {[%clk 0:00:58]} 18. Be3 {[%clk 0:00:25]}  g6 {[%clk 0:00:56]} 19. Bh3 {[%clk 0:00:25]}  e4 {[%clk 0:00:52]} 20. O-O-O {[%clk 0:00:16]}  Be5 {[%clk 0:00:51]} 21. Ne2 {[%clk 0:00:15]}  Nd5 {[%clk 0:00:49]} 22. Bd4 {[%clk 0:00:14]}  Bxd4 {[%clk 0:00:48]} 23. Rxd4 {[%clk 0:00:14]}  f5 {[%clk 0:00:47]} 24. Rhd1 {[%clk 0:00:14]}  Kc7 {[%clk 0:00:46]} 25. c4 {[%clk 0:00:13]}  Nf6 {[%clk 0:00:44]} 26. g3 {[%clk 0:00:10]}  Nd7 {[%clk 0:00:42]} 27. Nf4 {[%clk 0:00:10]}  Kc8 {[%clk 0:00:39]} 28. g4 {[%clk 0:00:09]}  Nc5 {[%clk 0:00:36]} 29. gxf5 {[%clk 0:00:09]}  Nxb3+ {[%clk 0:00:35]} 30. Kb2 {[%clk 0:00:09]}  Nxd4 {[%clk 0:00:33]} 31. fxg6+ {[%clk 0:00:10]}  Kb8 {[%clk 0:00:33]} 32. g7 {[%clk 0:00:09]}  Rhg8 {[%clk 0:00:34]} 33. Nh5 {[%clk 0:00:06]}  Be8 {[%clk 0:00:27]} 34. Nf6 {[%clk 0:00:05]}  Rxg7 {[%clk 0:00:27]} 35. Nxe8 {[%clk 0:00:05]}  Rxe8 {[%clk 0:00:22]} 36. Rxd4 {[%clk 0:00:06]}  Rg6 {[%clk 0:00:21]} 37. Kc3 {[%clk 0:00:04]}  Rh6 {[%clk 0:00:22]} 38. Bf5 {[%clk 0:00:04]}  Rxh2 {[%clk 0:00:22]} 39. Rxe4 {[%clk 0:00:04]}  Rf8 {[%clk 0:00:20]} 40. Bg4 {[%clk 0:00:05]}  Rhxf2 {[%clk 0:00:19]} 41. Re7 {[%clk 0:00:05]}  R2f7 {[%clk 0:00:19]} 42. Re5 {[%clk 0:00:05]}  Rg8 {[%clk 0:00:19]} 43. Be6 {[%clk 0:00:05]}  Re7 {[%clk 0:00:19]} 44. Bxg8 {[%clk 0:00:05]}  Rxe5 {[%clk 0:00:19]} 45. Bxh7 {[%clk 0:00:05]}  Re3+ {[%clk 0:00:19]} 46. Kb2 {[%clk 0:00:05]}  Rh3 {[%clk 0:00:20]} 47. Bg8 {[%clk 0:00:05]}  Rg3 {[%clk 0:00:20]} 48. Bd5 {[%clk 0:00:05]}  Kc7 {[%clk 0:00:21]} 49. a4 {[%clk 0:00:05]}  b6 {[%clk 0:00:22]} 50. Ka2 {[%clk 0:00:04]}  Kd6 {[%clk 0:00:22]} 51. Kb2 {[%clk 0:00:04]}  Kc5 {[%clk 0:00:23]} 52. a5 {[%clk 0:00:03]}  bxa5 {[%clk 0:00:23]} 53. Be6 {[%clk 0:00:03]}  a4 {[%clk 0:00:23]} 54. Ka2 {[%clk 0:00:03]}  Kb4 {[%clk 0:00:24]} 55. c5 {[%clk 0:00:03]}  Kxc5 {[%clk 0:00:21]} 56. Bd7 {[%clk 0:00:04]}  Kb4 {[%clk 0:00:21]} 57. Be6 {[%clk 0:00:04]}  Rg2+ {[%clk 0:00:21]} 58. Ka1 {[%clk 0:00:04]}  Ka3 {[%clk 0:00:19]} 59. Kb1 {[%clk 0:00:04]}  Rg1+ {[%clk 0:00:19]} 60. Kc2 {[%clk 0:00:04]}  Rg3 {[%clk 0:00:20]} 61. Bf7 {[%clk 0:00:04]}  Rb3 {[%clk 0:00:20]} 62. Be8 {[%clk 0:00:02]}  Kb4 {[%clk 0:00:19]} 63. Bf7 {[%clk 0:00:01]}  a5 {[%clk 0:00:19]} 0-1


[Site "https://www.chess.com"]

[Event "Titled Tuesday Blitz April 4 Early 2023"]
[White "Ordekalog"]
[Black "Rizzo, Tobias"]
[BlackFideId "30942691"]
[WhiteElo "2552"]
[BlackElo "2423"]
[Result "0-1"]
[Round "07"]
[TimeControl "180+2"]
[Date "2023.04.04"]
[WhiteClock "0:00:02"]
[BlackClock "0:00:06"]

1. e4 {[%clk 0:03:00]}  c5 {[%clk 0:02:59]} 2. d3 {[%clk 0:03:00]}  Nc6 {[%clk 0:02:55]} 3. g3 {[%clk 0:02:59]}  d5 {[%clk 0:02:53]} 4. exd5 {[%clk 0:02:58]}  Qxd5 {[%clk 0:02:53]} 5. Nf3 {[%clk 0:02:56]}  e5 {[%clk 0:02:48]} 6. Bg2 {[%clk 0:02:55]}  Nf6 {[%clk 0:02:45]} 7. O-O {[%clk 0:02:53]}  Be7 {[%clk 0:02:43]} 8. Re1 {[%clk 0:02:52]}  Qd6 {[%clk 0:02:42]} 9. Na3 {[%clk 0:02:48]}  Be6 {[%clk 0:02:38]} 10. Nb5 {[%clk 0:02:28]}  Qb8 {[%clk 0:02:37]} 11. Ng5 {[%clk 0:02:06]}  Bg4 {[%clk 0:02:12]} 12. f3 {[%clk 0:02:04]}  Bd7 {[%clk 0:02:05]} 13. f4 {[%clk 0:02:04]}  O-O {[%clk 0:02:00]} 14. fxe5 {[%clk 0:02:00]}  Nxe5 {[%clk 0:01:55]} 15. Bf4 {[%clk 0:02:00]}  Bxb5 {[%clk 0:01:51]} 16. Bxe5 {[%clk 0:01:58]}  Qc8 {[%clk 0:01:44]} 17. Bc3 {[%clk 0:01:24]}  Re8 {[%clk 0:01:39]} 18. Qd2 {[%clk 0:01:04]}  Bc6 {[%clk 0:01:38]} 19. Bh3 {[%clk 0:01:03]}  Qd8 {[%clk 0:01:24]} 20. Rf1 {[%clk 0:00:52]}  h6 {[%clk 0:01:23]} 21. Nf3 {[%clk 0:00:36]}  Nd5 {[%clk 0:01:17]} 22. Ne5 {[%clk 0:00:32]}  Nxc3 {[%clk 0:01:07]} 23. Nxc6 {[%clk 0:00:31]}  bxc6 {[%clk 0:01:05]} 24. bxc3 {[%clk 0:00:31]}  Bg5 {[%clk 0:01:02]} 25. Qg2 {[%clk 0:00:29]}  Qd5 {[%clk 0:00:59]} 26. c4 {[%clk 0:00:28]}  Qd4+ {[%clk 0:00:57]} 27. Kh1 {[%clk 0:00:27]}  Re7 {[%clk 0:00:50]} 28. Qxc6 {[%clk 0:00:25]}  Rae8 {[%clk 0:00:50]} 29. Qf3 {[%clk 0:00:24]}  Bf6 {[%clk 0:00:41]} 30. Rab1 {[%clk 0:00:22]}  Re3 {[%clk 0:00:40]} 31. Qf2 {[%clk 0:00:21]}  Qc3 {[%clk 0:00:40]} 32. Rb7 {[%clk 0:00:19]}  Re2 {[%clk 0:00:38]} 33. Qf3 {[%clk 0:00:15]}  Qxc2 {[%clk 0:00:37]} 34. Bg2 {[%clk 0:00:16]}  R2e3 {[%clk 0:00:27]} 35. Qd5 {[%clk 0:00:15]}  R8e7 {[%clk 0:00:19]} 36. Rb8+ {[%clk 0:00:13]}  Re8 {[%clk 0:00:19]} 37. Rxe8+ {[%clk 0:00:12]}  Rxe8 {[%clk 0:00:20]} 38. h4 {[%clk 0:00:11]}  Rd8 {[%clk 0:00:15]} 39. Qxc5 {[%clk 0:00:08]}  Qxd3 {[%clk 0:00:15]} 40. Qxa7 {[%clk 0:00:05]}  Qxg3 {[%clk 0:00:13]} 41. Qf2 {[%clk 0:00:05]}  Qxh4+ {[%clk 0:00:08]} 42. Qxh4 {[%clk 0:00:04]}  Bxh4 {[%clk 0:00:09]} 43. Bd5 {[%clk 0:00:04]}  Bf6 {[%clk 0:00:09]} 44. a4 {[%clk 0:00:04]}  Rb8 {[%clk 0:00:08]} 45. Re1 {[%clk 0:00:02]}  Kf8 {[%clk 0:00:03]} 46. Kg2 {[%clk 0:00:03]}  Rb2+ {[%clk 0:00:03]} 47. Kf3 {[%clk 0:00:03]}  g6 {[%clk 0:00:04]} 48. Ke4 {[%clk 0:00:03]}  Ra2 {[%clk 0:00:04]} 49. Bc6 {[%clk 0:00:03]}  Rd2 {[%clk 0:00:04]} 50. Rb1 {[%clk 0:00:02]}  Rd4+ {[%clk 0:00:04]} 51. Ke3 {[%clk 0:00:02]}  Rxc4 {[%clk 0:00:05]} 52. Rb8+ {[%clk 0:00:02]}  Kg7 {[%clk 0:00:06]} 53. Bb5 {[%clk 0:00:03]}  Rb4 {[%clk 0:00:04]} 54. Re8 {[%clk 0:00:03]}  Rb3+ {[%clk 0:00:04]} 55. Kd2 {[%clk 0:00:03]}  Bd4 {[%clk 0:00:04]} 56. Kc2 {[%clk 0:00:03]}  Rb2+ {[%clk 0:00:02]} 57. Kd3 {[%clk 0:00:04]}  Bf6 {[%clk 0:00:03]} 58. Re2 {[%clk 0:00:03]}  Rxe2 {[%clk 0:00:02]} 59. Kxe2 {[%clk 0:00:04]}  h5 {[%clk 0:00:03]} 60. a5 {[%clk 0:00:05]}  Bd4 {[%clk 0:00:03]} 61. a6 {[%clk 0:00:05]}  Bc5 {[%clk 0:00:03]} 62. Kd3 {[%clk 0:00:06]}  Kf6 {[%clk 0:00:04]} 63. Kc4 {[%clk 0:00:06]}  Bb6 {[%clk 0:00:04]} 64. Be8 {[%clk 0:00:06]}  Kg7 {[%clk 0:00:04]} 65. Kd5 {[%clk 0:00:07]}  h4 {[%clk 0:00:05]} 66. Ke4 {[%clk 0:00:07]}  g5 {[%clk 0:00:05]} 67. Kf5 {[%clk 0:00:07]}  f6 {[%clk 0:00:03]} 68. Bd7 {[%clk 0:00:06]}  Bd4 {[%clk 0:00:04]} 69. Kg4 {[%clk 0:00:06]}  Kg6 {[%clk 0:00:04]} 70. Bf5+ {[%clk 0:00:07]}  Kf7 {[%clk 0:00:04]} 71. Kh3 {[%clk 0:00:07]}  Ke7 {[%clk 0:00:04]} 72. Kg4 {[%clk 0:00:07]}  Kd6 {[%clk 0:00:05]} 73. Bc8 {[%clk 0:00:06]}  Ke5 {[%clk 0:00:05]} 74. Bd7 {[%clk 0:00:06]}  Ke4 {[%clk 0:00:04]} 75. Bc6+ {[%clk 0:00:05]}  Ke3 {[%clk 0:00:05]} 76. Bd7 {[%clk 0:00:05]}  Kf2 {[%clk 0:00:05]} 77. Bc6 {[%clk 0:00:05]}  Kg1 {[%clk 0:00:04]} 78. Kh3 {[%clk 0:00:04]}  Kf2 {[%clk 0:00:04]} 79. Bd7 {[%clk 0:00:04]}  Kf3 {[%clk 0:00:04]} 80. Bc6+ {[%clk 0:00:03]}  Kf4 {[%clk 0:00:04]} 81. Bd7 {[%clk 0:00:03]}  f5 {[%clk 0:00:03]} 82. Bc8 {[%clk 0:00:04]}  Bf2 {[%clk 0:00:03]} 83. Bd7 {[%clk 0:00:03]}  g4+ {[%clk 0:00:04]} 84. Kg2 {[%clk 0:00:03]}  Ba7 {[%clk 0:00:04]} 85. Bc8 {[%clk 0:00:04]}  h3+ {[%clk 0:00:04]} 86. Kh2 {[%clk 0:00:04]}  Kg5 {[%clk 0:00:05]} 87. Bd7 {[%clk 0:00:03]}  Bb8+ {[%clk 0:00:05]} 88. Kh1 {[%clk 0:00:03]}  g3 {[%clk 0:00:05]} 89. Bc6 {[%clk 0:00:03]}  g2+ {[%clk 0:00:05]} 90. Bxg2 {[%clk 0:00:02]}  hxg2+ {[%clk 0:00:06]} 91. Kxg2 {[%clk 0:00:02]}  Kg4 {[%clk 0:00:06]} 0-1


[Site "https://www.chess.com"]

[Event "Titled Tuesday Blitz April 4 Early 2023"]
[White "ArtemDyachuk"]
[Black "Pajeken, Jakob Leon"]
[BlackFideId "12942839"]
[WhiteElo "2418"]
[BlackElo "2414"]
[Result "1-0"]
[Round "07"]
[TimeControl "180+2"]
[Date "2023.04.04"]
[WhiteClock "0:00:06"]
[BlackClock "0:00:20"]

1. Nf3 {[%clk 0:03:00]}  d5 {[%clk 0:02:59]} 2. e3 {[%clk 0:02:58]}  Nf6 {[%clk 0:02:55]} 3. c4 {[%clk 0:02:56]}  dxc4 {[%clk 0:02:56]} 4. Bxc4 {[%clk 0:02:55]}  c5 {[%clk 0:02:57]} 5. O-O {[%clk 0:02:52]}  Nc6 {[%clk 0:02:57]} 6. Nc3 {[%clk 0:02:47]}  a6 {[%clk 0:02:51]} 7. b3 {[%clk 0:02:42]}  b5 {[%clk 0:02:47]} 8. Be2 {[%clk 0:02:41]}  e5 {[%clk 0:02:47]} 9. Bb2 {[%clk 0:02:39]}  Bd6 {[%clk 0:02:43]} 10. a4 {[%clk 0:02:30]}  b4 {[%clk 0:02:37]} 11. Na2 {[%clk 0:02:29]}  e4 {[%clk 0:02:29]} 12. Ng5 {[%clk 0:02:17]}  Bf5 {[%clk 0:02:07]} 13. f3 {[%clk 0:02:00]}  h5 {[%clk 0:01:56]} 14. fxe4 {[%clk 0:01:56]}  Bxh2+ {[%clk 0:01:53]} 15. Kxh2 {[%clk 0:01:43]}  Ng4+ {[%clk 0:01:52]} 16. Kg1 {[%clk 0:01:40]}  Qxg5 {[%clk 0:01:51]} 17. Rxf5 {[%clk 0:01:36]}  Qh4 {[%clk 0:01:50]} 18. Bc4 {[%clk 0:01:10]}  Qh2+ {[%clk 0:01:41]} 19. Kf1 {[%clk 0:01:10]}  Qh1+ {[%clk 0:01:42]} 20. Ke2 {[%clk 0:01:09]}  Qxg2+ {[%clk 0:01:42]} 21. Kd3 {[%clk 0:01:09]}  O-O-O+ {[%clk 0:01:34]} 22. Bd5 {[%clk 0:00:49]}  Nce5+ {[%clk 0:01:23]} 23. Bxe5 {[%clk 0:00:37]}  Rxd5+ {[%clk 0:01:18]} 24. exd5 {[%clk 0:00:29]}  Qxd5+ {[%clk 0:01:17]} 25. Ke2 {[%clk 0:00:29]}  Qg2+ {[%clk 0:01:17]} 26. Ke1 {[%clk 0:00:21]}  Qh1+ {[%clk 0:00:54]} 27. Ke2 {[%clk 0:00:16]}  Qg2+ {[%clk 0:00:53]} 28. Ke1 {[%clk 0:00:16]}  Qh1+ {[%clk 0:00:53]} 29. Rf1 {[%clk 0:00:16]}  Qh4+ {[%clk 0:00:53]} 30. Ke2 {[%clk 0:00:16]}  Nxe5 {[%clk 0:00:47]} 31. Qc2 {[%clk 0:00:15]}  Qg4+ {[%clk 0:00:40]} 32. Ke1 {[%clk 0:00:12]}  Qg3+ {[%clk 0:00:22]} 33. Kd1 {[%clk 0:00:11]}  Rd8 {[%clk 0:00:22]} 34. Qxc5+ {[%clk 0:00:10]}  Kb8 {[%clk 0:00:21]} 35. Qb6+ {[%clk 0:00:07]}  Ka8 {[%clk 0:00:20]} 36. Qxd8+ {[%clk 0:00:06]} 1-0


[Site "https://www.chess.com"]

[Event "Titled Tuesday Blitz April 4 Early 2023"]
[White "Filgueira, Hernan"]
[Black "Leebit02"]
[WhiteFideId "101770"]
[WhiteElo "2363"]
[BlackElo "2385"]
[Result "0-1"]
[Round "07"]
[TimeControl "180+2"]
[Date "2023.04.04"]
[WhiteClock "0:00:10"]
[BlackClock "0:00:10"]

1. c4 {[%clk 0:02:59]}  e5 {[%clk 0:02:59]} 2. Nc3 {[%clk 0:02:58]}  Nf6 {[%clk 0:02:58]} 3. Nf3 {[%clk 0:02:57]}  Nc6 {[%clk 0:02:50]} 4. a3 {[%clk 0:02:56]}  d5 {[%clk 0:02:42]} 5. cxd5 {[%clk 0:02:54]}  Nxd5 {[%clk 0:02:42]} 6. Qc2 {[%clk 0:02:55]}  Be7 {[%clk 0:02:40]} 7. e3 {[%clk 0:02:55]}  O-O {[%clk 0:02:39]} 8. Be2 {[%clk 0:02:50]}  Be6 {[%clk 0:02:35]} 9. d3 {[%clk 0:02:50]}  a5 {[%clk 0:02:29]} 10. Bd2 {[%clk 0:02:49]}  f6 {[%clk 0:02:12]} 11. O-O {[%clk 0:02:46]}  Kh8 {[%clk 0:02:12]} 12. Kh1 {[%clk 0:02:40]}  Nb6 {[%clk 0:01:53]} 13. b3 {[%clk 0:02:39]}  f5 {[%clk 0:01:44]} 14. Bc1 {[%clk 0:02:35]}  Bf6 {[%clk 0:01:39]} 15. Bb2 {[%clk 0:02:34]}  Qd7 {[%clk 0:01:35]} 16. Rad1 {[%clk 0:02:33]}  Rad8 {[%clk 0:01:28]} 17. Nd2 {[%clk 0:02:22]}  Nd5 {[%clk 0:01:27]} 18. Nc4 {[%clk 0:02:21]}  Qf7 {[%clk 0:01:26]} 19. Nb5 {[%clk 0:02:14]}  g6 {[%clk 0:01:17]} 20. Rfe1 {[%clk 0:02:09]}  Bg7 {[%clk 0:01:17]} 21. Bf3 {[%clk 0:02:05]}  h5 {[%clk 0:01:11]} 22. e4 {[%clk 0:01:58]}  Nf4 {[%clk 0:00:57]} 23. exf5 {[%clk 0:01:47]}  Bxf5 {[%clk 0:00:57]} 24. Bxc6 {[%clk 0:01:45]}  bxc6 {[%clk 0:00:57]} 25. Nxe5 {[%clk 0:01:45]}  Qd5 {[%clk 0:00:47]} 26. Qxc6 {[%clk 0:01:22]}  Qxc6 {[%clk 0:00:41]} 27. Nxc6 {[%clk 0:01:22]}  Bxb2 {[%clk 0:00:42]} 28. Nxd8 {[%clk 0:01:21]}  Rxd8 {[%clk 0:00:43]} 29. Nxc7 {[%clk 0:01:12]}  Nxd3 {[%clk 0:00:42]} 30. Kg1 {[%clk 0:01:08]}  Rd7 {[%clk 0:00:35]} 31. Re8+ {[%clk 0:01:02]}  Kg7 {[%clk 0:00:33]} 32. Nb5 {[%clk 0:01:00]}  Rd5 {[%clk 0:00:25]} 33. a4 {[%clk 0:01:00]}  Rc5 {[%clk 0:00:23]} 34. h3 {[%clk 0:00:57]}  Rc2 {[%clk 0:00:22]} 35. Nd6 {[%clk 0:00:37]}  Nxf2 {[%clk 0:00:23]} 36. Nxf5+ {[%clk 0:00:37]}  gxf5 {[%clk 0:00:23]} 37. Rd7+ {[%clk 0:00:37]}  Kf6 {[%clk 0:00:22]} 38. Kf1 {[%clk 0:00:36]}  Ne4 {[%clk 0:00:22]} 39. g4 {[%clk 0:00:31]}  hxg4 {[%clk 0:00:18]} 40. hxg4 {[%clk 0:00:31]}  Ng3+ {[%clk 0:00:19]} 41. Kg1 {[%clk 0:00:29]}  fxg4 {[%clk 0:00:20]} 42. Rd6+ {[%clk 0:00:25]}  Kg5 {[%clk 0:00:19]} 43. Red8 {[%clk 0:00:20]}  Kf4 {[%clk 0:00:17]} 44. Rd2 {[%clk 0:00:19]}  Rc1+ {[%clk 0:00:16]} 45. Kg2 {[%clk 0:00:19]}  Bc3 {[%clk 0:00:10]} 46. Rf2+ {[%clk 0:00:18]}  Kg5 {[%clk 0:00:09]} 47. Kxg3 {[%clk 0:00:17]}  Be1 {[%clk 0:00:09]} 48. Kg2 {[%clk 0:00:17]}  Bxf2 {[%clk 0:00:09]} 49. Kxf2 {[%clk 0:00:18]}  Rc2+ {[%clk 0:00:10]} 50. Kg3 {[%clk 0:00:17]}  Rc3+ {[%clk 0:00:10]} 51. Kg2 {[%clk 0:00:18]}  Rxb3 {[%clk 0:00:10]} 52. Rd5+ {[%clk 0:00:19]}  Kf4 {[%clk 0:00:10]} 53. Rxa5 {[%clk 0:00:19]}  Rb2+ {[%clk 0:00:11]} 54. Kg1 {[%clk 0:00:18]}  Kg3 {[%clk 0:00:12]} 55. Kf1 {[%clk 0:00:18]}  Rb1+ {[%clk 0:00:12]} 56. Ke2 {[%clk 0:00:18]}  Kg2 {[%clk 0:00:13]} 57. Rg5 {[%clk 0:00:17]}  g3 {[%clk 0:00:13]} 58. a5 {[%clk 0:00:17]}  Ra1 {[%clk 0:00:14]} 59. Ke3 {[%clk 0:00:14]}  Ra2 {[%clk 0:00:12]} 60. Ke4 {[%clk 0:00:11]}  Kf2 {[%clk 0:00:12]} 61. Rf5+ {[%clk 0:00:11]}  Ke1 {[%clk 0:00:11]} 62. Rg5 {[%clk 0:00:10]}  g2 {[%clk 0:00:12]} 63. Kf3 {[%clk 0:00:11]}  Kf1 {[%clk 0:00:11]} 64. a6 {[%clk 0:00:10]}  g1=Q {[%clk 0:00:10]} 0-1


[Site "https://www.chess.com"]

[Event "Titled Tuesday Blitz April 4 Early 2023"]
[White "Bayo Milagro, Alvaro"]
[Black "Tsotsonava, Elene"]
[WhiteFideId "22275240"]
[BlackFideId "13615939"]
[WhiteElo "2270"]
[BlackElo "1829"]
[Result "1-0"]
[Round "07"]
[TimeControl "180+2"]
[Date "2023.04.04"]
[WhiteClock "0:00:55"]
[BlackClock "0:00:02"]

1. Nf3 {[%clk 0:03:00]}  d5 {[%clk 0:02:57]} 2. c4 {[%clk 0:02:59]}  d4 {[%clk 0:02:56]} 3. b4 {[%clk 0:02:58]}  f6 {[%clk 0:02:48]} 4. d3 {[%clk 0:02:58]}  e5 {[%clk 0:02:47]} 5. a3 {[%clk 0:02:57]}  a5 {[%clk 0:02:44]} 6. b5 {[%clk 0:02:57]}  c6 {[%clk 0:02:43]} 7. bxc6 {[%clk 0:02:55]}  Nxc6 {[%clk 0:02:42]} 8. g3 {[%clk 0:02:56]}  Bc5 {[%clk 0:02:40]} 9. Bg2 {[%clk 0:02:56]}  Nge7 {[%clk 0:02:40]} 10. O-O {[%clk 0:02:57]}  O-O {[%clk 0:02:41]} 11. Nbd2 {[%clk 0:02:57]}  a4 {[%clk 0:02:40]} 12. Rb1 {[%clk 0:02:57]}  Kh8 {[%clk 0:02:38]} 13. Ne4 {[%clk 0:02:56]}  Ba7 {[%clk 0:02:29]} 14. Qxa4 {[%clk 0:02:49]}  f5 {[%clk 0:02:25]} 15. Ned2 {[%clk 0:02:43]}  e4 {[%clk 0:02:10]} 16. dxe4 {[%clk 0:02:37]}  d3 {[%clk 0:01:54]} 17. Qd1 {[%clk 0:02:36]}  fxe4 {[%clk 0:01:20]} 18. Nxe4 {[%clk 0:02:32]}  dxe2 {[%clk 0:01:17]} 19. Qxe2 {[%clk 0:02:31]}  Nf5 {[%clk 0:01:11]} 20. Bb2 {[%clk 0:02:28]}  Nfd4 {[%clk 0:01:03]} 21. Nxd4 {[%clk 0:02:27]}  Nxd4 {[%clk 0:01:04]} 22. Bxd4 {[%clk 0:02:02]}  Qxd4 {[%clk 0:01:04]} 23. Rbd1 {[%clk 0:02:02]}  Qe5 {[%clk 0:01:01]} 24. Rd5 {[%clk 0:01:32]}  Qe7 {[%clk 0:00:51]} 25. c5 {[%clk 0:01:22]}  Be6 {[%clk 0:00:40]} 26. Re5 {[%clk 0:01:22]}  Bb8 {[%clk 0:00:39]} 27. Nd6 {[%clk 0:01:22]}  Rxa3 {[%clk 0:00:32]} 28. Rxe6 {[%clk 0:01:21]}  Qd7 {[%clk 0:00:31]} 29. Re7 {[%clk 0:01:13]}  Qa4 {[%clk 0:00:28]} 30. Nf7+ {[%clk 0:01:06]}  Kg8 {[%clk 0:00:24]} 31. Qe6 {[%clk 0:01:05]}  Qb3 {[%clk 0:00:20]} 32. Bd5 {[%clk 0:00:58]}  Ra6 {[%clk 0:00:15]} 33. Nh6+ {[%clk 0:00:55]}  Kh8 {[%clk 0:00:15]} 34. Qg8+ {[%clk 0:00:55]}  Rxg8 {[%clk 0:00:02]} 35. Nf7# {[%clk 0:00:55]} 1-0


[Site "https://www.chess.com"]